[Event "World Senior chT-50 2019"]
[Site "Rhodes"]
[Date "2019.04.21"]
[Round "6.16"]
[White "Titorenko, Natalia I"]
[Black "Gruenfeld, Yehuda"]
[Result "0-1"]
[ECO "B90"]
[WhiteElo "2153"]
[BlackElo "2428"]
[Annotator "NA"]
[PlyCount "98"]
[EventDate "2019.04.16"]
[EventType "team-tourn"]
[EventCountry "GRE"]
[SourceTitle "playchess.com"]
[Source "ChessBase"]
[SourceQuality "1"]
[WhiteTeam "Russia"]
[BlackTeam "Israel"]
[WhiteTeamCountry "RUS"]
[BlackTeamCountry "ISR"]
[TimeControl "40/5400+30:1800+30"]

1. e4 {[%emt 0:00:00]} c5 {[%emt 0:00:00]} 2. Nf3 {[%emt 0:00:00]} d6 {[%emt 0:00:00]} 3. d4 {[%emt 0:00:00]} cxd4 {[%emt 0:00:00]} 4. Nxd4 {[%emt 0:00:00]} Nf6 {[%emt 0:00:04]} 5. Nc3 {[%emt 0:00:00]} a6 {[%emt 0:00:04]} 6. Nb3 {[%emt 0:00:12]} Nc6 {[%emt 0:01:14]} 7. a4 {[%emt 0:04:25]} g6 {[%emt 0:00:17]} 8. Be2 {[%emt 0:02:00]} Bg7 {[%emt 0:00:10]} 9. Be3 {[%emt 0:01:44]} O-O {[%emt 0:01:22]} 10. a5 {[%emt 0:04:31]} Be6 {[%emt 0:01:19]} 11. Bb6 {[%emt 0:04:13]} Qc8 {[%emt 0:02:14]} 12. Nd4 {[%emt 0:06:48]} Bd7 {[%emt 0:06:49]} 13. Nxc6 {[%emt 0:10:47]} Bxc6 {[%emt 0:00:48]} 14. Nd5 {[%emt 0:02:09]} Qe6 {[%emt 0:07:07]} 15. O-O {[%emt 0:22:45]} Nxd5 {[%emt 0:01:52]} 16. exd5 {[%emt 0:00:01]} Qxd5 {[%emt 0:00:36]} 17. Qxd5 {[%emt 0:00:07]} Bxd5 {[%emt 0:00:15]} 18. c3 {[%emt 0:00:09]} Bc6 {[%emt 0:01:39]} 19. Rfd1 {[%emt 0:01:47]} Rac8 {[%emt 0:00:10]} 20. f3 {[%emt 0:06:43]} Rfe8 {[%emt 0:02:15]} 21. Kf2 {[%emt 0:01:31]} d5 {[%emt 0:00:20]} 22. f4 {[%emt 0:07:27]} e6 {[%emt 0:00:46]} 23. h4 {[%emt 0:07:44]} Bf8 {[%emt 0:07:31]} 24. h5 {[%emt 0:01:13]} Bd7 {[%emt 0:04:53]} 25. hxg6 {[%emt 0:02:46]} hxg6 {[%emt 0:00:07]} 26. Bd4 {[%emt 0:04:45]} Bc5 {[%emt 0:00:05]} 27. Bxc5 {[%emt 0:07:12]} Rxc5 {[%emt 0:00:06]} 28. c4 {[%emt 0:00:20]} Rc7 {[%emt 0:03:02]} 29. b3 {[%emt 0:00:33]} Bc6 {[%emt 0:00:53]} 30. Rd2 {[%emt 0:00:15]} Kg7 {[%emt 0:01:10]} 31. c5 {[%emt 0:01:16]} f6 {[%emt 0:05:17]} 32. b4 {[%emt 0:01:14]} e5 {[%emt 0:00:10]} 33. fxe5 {[%emt 0:00:27]} fxe5 {[%emt 0:00:08]} 34. Rb1 {[%emt 0:00:20]} d4 {[%emt 0:02:49]} 35. b5 {[%emt 0:00:09]} Rf8+ {[%emt 0:01:08]} 36. Kg3 {[%emt 0:00:09]} axb5 {[%emt 0:00:53]} 37. Bxb5 {[%emt 0:00:02]} Bd5 {[%emt 0:01:38]} 38. Rc1 {[%emt 0:00:29]} Rf5 {[%emt 0:00:55]} 39. a6 {[%emt 0:00:15]} bxa6 {[%emt 0:01:30]} 40. Bxa6 {[%emt 0:00:00]} Bc6 {[%emt 0:00:00]} 41. Rcc2 {[%emt 0:06:32]} Ra7 {[%emt 0:03:01]} 42. Bc4 {[%emt 0:04:00]} Ra3+ {[%emt 0:02:14]} 43. Kh2 {[%emt 0:00:38]} Rh5+ {[%emt 0:00:45]} 44. Kg1 {[%emt 0:00:03]} Ra1+ {[%emt 0:00:08]} 45. Kf2 {[%emt 0:01:09]} Rhh1 {[%emt 0:00:20]} 46. Be2 {[%emt 0:07:49]} Rhc1 {[%emt 0:00:30]} 47. Bc4 {[%emt 0:12:06]} Rxc2 {[%emt 0:00:56]} 48. Rxc2 {[%emt 0:00:01]} e4 {[%emt 0:00:14]} 49. Rb2 {[%emt 0:03:08]} Ra5 {[%emt 0:01:41]} 0-1

[Event "World Senior chT-50 2019"]
[Site "Rhodes"]
[Date "2019.04.21"]
[Round "6.17"]
[White "Boensch, Uwe"]
[Black "Mitrandzas, Athanasios"]
[Result "1/2-1/2"]
[ECO "E16"]
[WhiteElo "2525"]
[BlackElo "2055"]
[Annotator "ChessBase"]
[PlyCount "62"]
[EventDate "2019.04.16"]
[EventType "team-tourn"]
[EventCountry "GRE"]
[SourceTitle "playchess.com"]
[Source "ChessBase"]
[SourceQuality "1"]
[WhiteTeam "Germany"]
[BlackTeam "Greece"]
[WhiteTeamCountry "GER"]
[BlackTeamCountry "GRE"]
[TimeControl "40/5400+30:1800+30"]

1. d4 {[%emt 0:00:00]} Nf6 {[%emt 0:00:00]} 2. c4 {[%emt 0:00:00]} e6 {[%emt 0:00:10]} 3. Nf3 {[%emt 0:00:00]} Bb4+ {[%emt 0:00:11]} 4. Nbd2 {[%emt 0:00:00]} O-O {[%emt 0:00:29]} 5. g3 {[%emt 0:00:27]} b6 {[%emt 0:00:27]} 6. Bg2 {[%emt 0:00:08]} Bb7 {[%emt 0:00:07]} 7. O-O {[%emt 0:00:17]} Bxd2 {[%emt 0:00:35]} 8. Bxd2 {[%emt 0:00:53]} d6 {[%emt 0:00:30]} 9. b3 {[%emt 0:09:24]} a5 {[%emt 0:02:27]} 10. a4 {[%emt 0:03:41]} Re8 {[%emt 0:05:33]} 11. Bc3 {[%emt 0:00:37]} Nbd7 {[%emt 0:00:19]} 12. Ra2 {[%emt 0:03:13]} Qe7 {[%emt 0:04:00]} 13. Bh3 {[%emt 0:05:17]} e5 {[%emt 0:07:15]} 14. d5 {[%emt 0:13:23]} Ne4 {[%emt 0:08:13]} 15. Be1 {[%emt 0:06:27]} Ndc5 {[%emt 0:07:03]} 16. Nh4 {[%emt 0:07:21]} Bc8 {[%emt 0:11:03]} 17. Bxc8 {[%emt 0:00:46]} Raxc8 {[%emt 0:00:08]} 18. f3 {[%emt 0:00:19]} Nf6 {[%emt 0:07:26]} 19. e4 {[%emt 0:02:22]} g6 {[%emt 0:05:10]} 20. Bd2 {[%emt 0:08:56]} Nh5 {[%emt 0:02:09]} 21. Be3 {[%emt 0:03:19]} Rf8 {[%emt 0:00:52]} 22. Bh6 {[%emt 0:02:19]} Ng7 {[%emt 0:00:24]} 23. Qc2 {[%emt 0:03:22]} Qd7 {[%emt 0:05:29]} 24. Qb1 {[%emt 0:04:23]} f5 {[%emt 0:03:53]} 25. exf5 {[%emt 0:00:17]} gxf5 {[%emt 0:00:58]} 26. f4 {[%emt 0:10:52]} e4 {[%emt 0:01:59]} 27. Qb2 {[%emt 0:02:10]} Qf7 {[%emt 0:00:37]} 28. Rb1 {[%emt 0:02:45]} Nd3 {[%emt 0:02:38]} 29. Qxg7+ {[%emt 0:02:27]} Qxg7 {[%emt 0:02:35]} 30. Bxg7 {[%emt 0:00:02]} Kxg7 {[%emt 0:00:08]} 31. Ng2 {[%emt 0:00:10]} Kf6 {[%emt 0:01:08]} 1/2-1/2

[Event "World Senior chT-50 2019"]
[Site "Rhodes"]
[Date "2019.04.21"]
[Round "6.18"]
[White "Ilandzis, Spyridon"]
[Black "Tischbierek, Raj"]
[Result "0-1"]
[ECO "A01"]
[WhiteElo "2021"]
[BlackElo "2435"]
[Annotator "NA"]
[PlyCount "66"]
[EventDate "2019.04.16"]
[EventType "team-tourn"]
[EventCountry "GRE"]
[SourceTitle "playchess.com"]
[Source "ChessBase"]
[SourceQuality "1"]
[WhiteTeam "Greece"]
[BlackTeam "Germany"]
[WhiteTeamCountry "GRE"]
[BlackTeamCountry "GER"]
[TimeControl "40/5400+30:1800+30"]

1. b3 {[%emt 0:03:17]} Nf6 {[%emt 0:00:00]} 2. Bb2 {[%emt 0:00:15]} g6 {[%emt 0:00:04]} 3. Bxf6 {[%emt 0:00:56]} exf6 {[%emt 0:00:06]} 4. c4 {[%emt 0:00:13]} d5 {[%emt 0:00:19]} 5. cxd5 {[%emt 0:00:55]} Qxd5 {[%emt 0:00:04]} 6. Nc3 {[%emt 0:00:15]} Qa5 {[%emt 0:00:05]} 7. a3 {[%emt 0:01:06]} c5 {[%emt 0:00:09]} 8. e3 {[%emt 0:01:15]} Nc6 {[%emt 0:00:32]} 9. Nf3 {[%emt 0:01:30]} Bg7 {[%emt 0:02:47]} 10. Rc1 {[%emt 0:03:48]} O-O {[%emt 0:04:12]} 11. Na4 {[%emt 0:04:14]} b6 {[%emt 0:06:57]} 12. b4 {[%emt 0:03:54]} cxb4 {[%emt 0:00:04]} 13. Rxc6 {[%emt 0:00:17]} bxa3 {[%emt 0:00:28]} 14. Rc1 {[%emt 0:02:19]} Bd7 {[%emt 0:08:47]} 15. Nc3 {[%emt 0:00:23]} b5 {[%emt 0:02:56]} 16. Qb3 {[%emt 0:08:00]} Rfc8 {[%emt 0:08:33]} 17. Rb1 {[%emt 0:12:09]} Rab8 {[%emt 0:07:41]} 18. Bd3 {[%emt 0:18:50]} Be6 {[%emt 0:13:30]} 19. Qb4 {[%emt 0:02:52]} Qd8 {[%emt 0:00:29]} 20. Ke2 {[%emt 0:16:52]} Bf8 {[%emt 0:02:58]} 21. Qd4 {[%emt 0:00:21]} b4 {[%emt 0:01:39]} 22. Ne4 {[%emt 0:01:43]} f5 {[%emt 0:14:34]} 23. Qxd8 {[%emt 0:06:56]} Rxd8 {[%emt 0:00:14]} 24. Neg5 {[%emt 0:00:06]} Bd5 {[%emt 0:07:00]} 25. Nd4 {[%emt 0:01:44]} b3 {[%emt 0:01:39]} 26. f3 {[%emt 0:01:54]} b2 {[%emt 0:01:54]} 27. Nh3 {[%emt 0:01:53]} a2 {[%emt 0:01:23]} 28. Nf4 {[%emt 0:00:52]} axb1=Q {[%emt 0:00:35]} 29. Bxb1 {[%emt 0:00:06]} Rbc8 {[%emt 0:01:17]} 30. Nxd5 {[%emt 0:02:21]} Rxd5 {[%emt 0:01:15]} 31. d3 {[%emt 0:01:28]} Rc1 {[%emt 0:04:38]} 32. Rd1 {[%emt 0:00:07]} f4 {[%emt 0:00:38]} 33. Ba2 {[%emt 0:01:43]} Ra5 {[%emt 0:01:36]} 0-1

[Event "World Senior chT-50 2019"]
[Site "Rhodes"]
[Date "2019.04.21"]
[Round "6.20"]
[White "Papadimitriou, Loukas"]
[Black "Maier, Christian"]
[Result "1-0"]
[ECO "E42"]
[WhiteElo "1943"]
[BlackElo "2325"]
[Annotator "NA"]
[PlyCount "93"]
[EventDate "2019.04.16"]
[EventType "team-tourn"]
[EventCountry "GRE"]
[SourceTitle "playchess.com"]
[Source "ChessBase"]
[SourceQuality "1"]
[WhiteTeam "Greece"]
[BlackTeam "Germany"]
[WhiteTeamCountry "GRE"]
[BlackTeamCountry "GER"]
[TimeControl "40/5400+30:1800+30"]

1. d4 {[%emt 0:00:04]} Nf6 2. c4 e6 3. Nc3 Bb4 4. e3 c5 5. Nge2 d5 6. a3 cxd4 7. exd4 Bxc3+ 8. Nxc3 dxc4 9. Bxc4 O-O 10. O-O Nbd7 11. Bg5 Qc7 12. Ba2 h6 13. Bh4 b6 14. d5 Ba6 15. dxe6 fxe6 16. Bxe6+ Kh8 17. Re1 Nc5 18. Bxf6 gxf6 19. Qh5 Qg7 20. Bd5 Rad8 21. Re3 Qg5 22. Qh3 {[%emt 0:10:01]} Bc8 {[%emt 0:10:46]} 23. Qf3 {[%emt 0:00:30]} Bg4 {[%emt 0:00:30]} 24. Qg3 {[%emt 0:00:30]} Bf5 {[%emt 0:00:30]} 25. b4 {[%emt 0:00:30]} Qxg3 {[%emt 0:00:30]} 26. hxg3 {[%emt 0:00:30]} Nd3 {[%emt 0:00:30]} 27. Rd1 {[%emt 0:00:30]} Ne5 {[%emt 0:00:30]} 28. f3 {[%emt 0:00:30]} h5 {[%emt 0:00:30]} 29. Kf2 {[%emt 0:00:30]} Kg7 {[%emt 0:00:30]} 30. Nb5 {[%emt 0:00:30]} Kg6 {[%emt 0:00:30]} 31. Ke2 {[%emt 0:00:30]} Rd7 {[%emt 0:00:30]} 32. Be4 {[%emt 0:00:30]} Rfd8 {[%emt 0:00:30]} 33. Rxd7 {[%emt 0:00:30]} Rxd7 {[%emt 0:00:30]} 34. Bxf5+ {[%emt 0:00:30]} Kxf5 {[%emt 0:00:30]} 35. Rc3 {[%emt 0:00:30]} Ke6 {[%emt 0:00:30]} 36. Rc7 {[%emt 0:00:30]} a6 {[%emt 0:00:30]} 37. Rxd7 {[%emt 0:00:30]} Kxd7 {[%emt 0:00:30]} 38. Nc3 {[%emt 0:00:30]} b5 {[%emt 0:00:30]} 39. Ne4 {[%emt 0:00:30]} Ke7 {[%emt 0:00:30]} 40. Nc5 {[%emt 0:00:30]} Nc4 {[%emt 0:00:30]} 41. Nxa6 {[%emt 0:30:30]} Nxa3 {[%emt 0:30:30]} 42. Kd3 {[%emt 0:00:30]} Kd6 {[%emt 0:00:30]} 43. Nc5 {[%emt 0:00:30]} Nc4 {[%emt 0:00:30]} 44. Nb3 {[%emt 0:00:30]} Kd5 {[%emt 0:00:30]} 45. Nd4 {[%emt 0:00:30]} Nd6 {[%emt 0:00:30]} 46. Ne2 {[%emt 0:00:30]} Ke5 {[%emt 0:00:30]} 47. Nf4 {[%emt 0:00:30]} 1-0

[Event "World Senior chT-50 2019"]
[Site "Rhodes"]
[Date "2019.04.21"]
[Round "6.20"]
[White "Papadimitriou, Loukas"]
[Black "Maier, Christian"]
[Result "0-1"]
[ECO "D30"]
[WhiteElo "1943"]
[BlackElo "2325"]
[Annotator "NA"]
[PlyCount "64"]
[EventDate "2019.04.16"]
[EventType "team-tourn"]
[EventCountry "GRE"]
[SourceTitle "playchess.com"]
[Source "ChessBase"]
[SourceQuality "1"]
[WhiteTeam "Greece"]
[BlackTeam "Germany"]
[WhiteTeamCountry "GRE"]
[BlackTeamCountry "GER"]
[TimeControl "40/5400+30:1800+30"]

1. d4 {[%emt 0:00:00]} d5 {[%emt 0:00:16]} 2. c4 {[%emt 0:00:37]} e6 {[%emt 0:00:05]} 3. Nf3 {[%emt 0:03:52]} c6 {[%emt 0:00:13]} 4. cxd5 {[%emt 0:04:56]} exd5 {[%emt 0:00:18]} 5. Bg5 {[%emt 0:01:33]} Be7 {[%emt 0:07:41]} 6. Bxe7 {[%emt 0:00:46]} Nxe7 {[%emt 0:00:02]} 7. Nc3 {[%emt 0:00:56]} O-O {[%emt 0:00:55]} 8. e3 {[%emt 0:00:28]} Bg4 {[%emt 0:00:43]} 9. Bd3 {[%emt 0:04:58]} Bf5 {[%emt 0:04:20]} 10. O-O {[%emt 0:01:14]} Nd7 {[%emt 0:00:59]} 11. Ne2 {[%emt 0:04:04]} Bxd3 {[%emt 0:02:56]} 12. Qxd3 {[%emt 0:00:03]} Nc8 {[%emt 0:01:26]} 13. Qa3 {[%emt 0:07:14]} Re8 {[%emt 0:05:15]} 14. Ng3 {[%emt 0:01:26]} Qf6 {[%emt 0:03:04]} 15. Nh5 {[%emt 0:05:50]} Qe7 {[%emt 0:05:14]} 16. Qxe7 {[%emt 0:00:35]} Rxe7 {[%emt 0:00:06]} 17. h4 {[%emt 0:05:56]} Nd6 {[%emt 0:01:08]} 18. Kh2 {[%emt 0:02:06]} Nc4 {[%emt 0:09:20]} 19. Rab1 {[%emt 0:02:34]} Rae8 {[%emt 0:03:25]} 20. Kh3 {[%emt 0:01:13]} g6 {[%emt 0:04:49]} 21. Nf4 {[%emt 0:00:06]} h5 {[%emt 0:00:24]} 22. b4 {[%emt 0:10:29]} Nf6 {[%emt 0:03:41]} 23. a4 {[%emt 0:04:57]} Ne4 {[%emt 0:03:47]} 24. Rbc1 {[%emt 0:00:51]} Kg7 {[%emt 0:00:50]} 25. b5 {[%emt 0:00:53]} f6 {[%emt 0:00:35]} 26. Rc2 {[%emt 0:06:39]} a5 {[%emt 0:03:59]} 27. Rg1 {[%emt 0:03:18]} Rh8 {[%emt 0:04:42]} 28. bxc6 {[%emt 0:03:03]} bxc6 {[%emt 0:00:10]} 29. Nd3 {[%emt 0:00:31]} g5 {[%emt 0:01:57]} 30. hxg5 {[%emt 0:00:33]} fxg5 {[%emt 0:00:14]} 31. Nfe5 {[%emt 0:00:39]} g4+ {[%emt 0:01:14]} 32. Kh4 {[%emt 0:01:33]} Ncd6 {[%emt 0:00:18]} 0-1

[Event "World Senior chT-50 2019"]
[Site "Rhodes"]
[Date "2019.04.21"]
[Round "6.21"]
[White "Ross, David"]
[Black "Mahia, Gustavo"]
[Result "1-0"]
[ECO "B06"]
[WhiteElo "2312"]
[BlackElo "2367"]
[Annotator "NA"]
[PlyCount "65"]
[EventDate "2019.04.16"]
[EventType "team-tourn"]
[EventCountry "GRE"]
[SourceTitle "playchess.com"]
[Source "ChessBase"]
[SourceQuality "1"]
[WhiteTeam "Canada"]
[BlackTeam "Argentina"]
[WhiteTeamCountry "CAN"]
[BlackTeamCountry "ARG"]
[TimeControl "40/5400+30:1800+30"]

1. e4 {[%emt 0:00:00]} g6 {[%emt 0:00:00]} 2. d4 {[%emt 0:00:01]} Bg7 {[%emt 0:00:00]} 3. Nc3 {[%emt 0:01:01]} d6 {[%emt 0:00:05]} 4. Be3 {[%emt 0:02:42]} a6 {[%emt 0:00:59]} 5. h4 {[%emt 0:01:39]} h6 {[%emt 0:03:14]} 6. Be2 {[%emt 0:03:43]} e5 {[%emt 0:07:16]} 7. dxe5 {[%emt 0:03:30]} dxe5 {[%emt 0:00:21]} 8. Qxd8+ {[%emt 0:00:31]} Kxd8 {[%emt 0:00:05]} 9. O-O-O+ {[%emt 0:00:19]} Bd7 {[%emt 0:02:50]} 10. Bc4 {[%emt 0:05:32]} f6 {[%emt 0:01:51]} 11. Nge2 {[%emt 0:08:18]} Ne7 {[%emt 0:27:07]} 12. f4 {[%emt 0:05:35]} Nec6 {[%emt 0:10:56]} 13. Bf7 {[%emt 0:08:00]} f5 {[%emt 0:18:22]} 14. Bxg6 {[%emt 0:01:00]} fxe4 {[%emt 0:01:35]} 15. Bxe4 {[%emt 0:05:02]} exf4 {[%emt 0:00:45]} 16. Bxf4 {[%emt 0:03:04]} Kc8 {[%emt 0:03:02]} 17. Nd5 {[%emt 0:04:12]} Re8 {[%emt 0:04:14]} 18. Ng3 {[%emt 0:03:19]} Be5 {[%emt 0:04:23]} 19. Bg6 {[%emt 0:07:32]} Bxf4+ {[%emt 0:01:24]} 20. Nxf4 {[%emt 0:00:05]} Rf8 {[%emt 0:00:14]} 21. Rhf1 {[%emt 0:06:21]} Bg4 {[%emt 0:00:40]} 22. Nd5 {[%emt 0:01:07]} Nd7 {[%emt 0:04:02]} 23. Rxf8+ {[%emt 0:01:12]} Nxf8 {[%emt 0:00:01]} 24. Bf5+ {[%emt 0:00:17]} Bxf5 {[%emt 0:00:07]} 25. Nxf5 {[%emt 0:00:01]} b6 {[%emt 0:02:55]} 26. Nxh6 {[%emt 0:02:49]} Kb7 {[%emt 0:00:07]} 27. Rf1 {[%emt 0:02:28]} Ne6 {[%emt 0:01:21]} 28. g4 {[%emt 0:03:12]} Rd8 {[%emt 0:00:12]} 29. Nf4 {[%emt 0:01:18]} Nc5 {[%emt 0:02:48]} 30. g5 {[%emt 0:01:16]} Rf8 {[%emt 0:02:28]} 31. g6 {[%emt 0:01:46]} Ne6 {[%emt 0:00:02]} 32. Nf7 {[%emt 0:00:34]} Ng7 {[%emt 0:01:44]} 33. h5 {[%emt 0:02:48]} 1-0

[Event "World Senior chT-50 2019"]
[Site "Rhodes"]
[Date "2019.04.21"]
[Round "6.22"]
[White "Garbarino, Rodolfo"]
[Black "Ross, Paul"]
[Result "1-0"]
[ECO "C06"]
[WhiteElo "2335"]
[BlackElo "2237"]
[Annotator "NA"]
[PlyCount "87"]
[EventDate "2019.04.16"]
[EventType "team-tourn"]
[EventCountry "GRE"]
[SourceTitle "playchess.com"]
[Source "ChessBase"]
[SourceQuality "1"]
[WhiteTeam "Argentina"]
[BlackTeam "Canada"]
[WhiteTeamCountry "ARG"]
[BlackTeamCountry "CAN"]
[TimeControl "40/5400+30:1800+30"]

1. e4 {[%emt 0:00:00]} e6 {[%emt 0:00:00]} 2. d4 {[%emt 0:00:00]} d5 {[%emt 0:00:00]} 3. Nd2 {[%emt 0:00:00]} Nf6 {[%emt 0:00:00]} 4. e5 {[%emt 0:00:00]} Nfd7 {[%emt 0:00:00]} 5. Bd3 {[%emt 0:00:00]} c5 {[%emt 0:00:00]} 6. c3 {[%emt 0:00:04]} Nc6 {[%emt 0:00:00]} 7. Ne2 {[%emt 0:00:12]} f6 {[%emt 0:00:02]} 8. exf6 {[%emt 0:00:10]} Qxf6 {[%emt 0:00:06]} 9. Nf3 {[%emt 0:00:15]} Bd6 {[%emt 0:00:05]} 10. O-O {[%emt 0:00:21]} e5 {[%emt 0:03:30]} 11. Bg5 {[%emt 0:01:04]} Qf7 {[%emt 0:00:06]} 12. dxe5 {[%emt 0:00:57]} Ndxe5 {[%emt 0:00:07]} 13. Nxe5 {[%emt 0:03:28]} Nxe5 {[%emt 0:00:16]} 14. Bb5+ {[%emt 0:01:35]} Bd7 {[%emt 0:00:12]} 15. Bxd7+ {[%emt 0:01:21]} Nxd7 {[%emt 0:00:13]} 16. Qd2 {[%emt 0:01:11]} O-O {[%emt 0:01:31]} 17. Rad1 {[%emt 0:00:25]} Nb6 {[%emt 0:00:45]} 18. Bh4 {[%emt 0:01:03]} Rfe8 {[%emt 0:01:57]} 19. Rfe1 {[%emt 0:01:03]} h6 {[%emt 0:02:28]} 20. Bg3 {[%emt 0:00:06]} Rad8 {[%emt 0:00:19]} 21. Bxd6 {[%emt 0:13:09]} Rxd6 {[%emt 0:00:09]} 22. Ng3 {[%emt 0:00:14]} Rde6 {[%emt 0:17:25]} 23. Rxe6 {[%emt 0:08:08]} Qxe6 {[%emt 0:02:36]} 24. Nf1 {[%emt 0:01:33]} Rd8 {[%emt 0:06:10]} 25. Ne3 {[%emt 0:09:50]} d4 {[%emt 0:01:46]} 26. b3 {[%emt 0:00:02]} Rd7 {[%emt 0:02:13]} 27. cxd4 {[%emt 0:00:10]} Rxd4 {[%emt 0:00:38]} 28. Qc2 {[%emt 0:00:21]} Nd5 {[%emt 0:02:54]} 29. Nxd5 {[%emt 0:04:16]} Qxd5 {[%emt 0:03:55]} 30. Re1 {[%emt 0:00:04]} Kf7 {[%emt 0:02:18]} 31. Qe2 {[%emt 0:00:04]} Kg8 {[%emt 0:05:37]} 32. h3 {[%emt 0:07:03]} Rd2 {[%emt 0:03:49]} 33. Qe8+ {[%emt 0:00:03]} Kh7 {[%emt 0:00:08]} 34. Re2 {[%emt 0:00:09]} Rd1+ {[%emt 0:01:41]} 35. Kh2 {[%emt 0:00:16]} b6 {[%emt 0:02:19]} 36. f4 {[%emt 0:03:11]} Qd4 {[%emt 0:01:04]} 37. Qf7 {[%emt 0:05:34]} Qg1+ {[%emt 0:11:49]} 38. Kg3 {[%emt 0:00:01]} Rd6 {[%emt 0:17:36]} 39. Qf5+ {[%emt 0:01:57]} Rg6+ {[%emt 0:00:17]} 40. Kh4 {[%emt 0:00:00]} Qd4 {[%emt 0:00:00]} 41. Re6 {[%emt 0:00:39]} Qd8+ {[%emt 0:16:57]} 42. Kh5 {[%emt 0:00:44]} Qd1+ {[%emt 0:00:03]} 43. g4 {[%emt 0:00:20]} Qd3 {[%emt 0:00:01]} 44. Qxd3 {[%emt 0:00:17]} 1-0

[Event "World Senior chT-50 2019"]
[Site "Rhodes"]
[Date "2019.04.21"]
[Round "6.24"]
[White "Perez Wertheim, Rodolfo"]
[Black "Chernik, Dmitry"]
[Result "1-0"]
[ECO "B72"]
[WhiteElo "1914"]
[BlackElo "1868"]
[Annotator "NA"]
[PlyCount "95"]
[EventDate "2019.04.16"]
[EventType "team-tourn"]
[EventCountry "GRE"]
[SourceTitle "playchess.com"]
[Source "ChessBase"]
[SourceQuality "1"]
[WhiteTeam "Argentina"]
[BlackTeam "Canada"]
[WhiteTeamCountry "ARG"]
[BlackTeamCountry "CAN"]
[TimeControl "40/5400+30:1800+30"]

1. e4 {[%emt 0:00:00]} c5 {[%emt 0:00:00]} 2. Nf3 {[%emt 0:00:00]} Nc6 {[%emt 0:00:09]} 3. d4 {[%emt 0:00:00]} cxd4 {[%emt 0:00:06]} 4. Nxd4 {[%emt 0:00:02]} Nf6 {[%emt 0:00:22]} 5. Nc3 {[%emt 0:00:22]} d6 {[%emt 0:00:07]} 6. Be2 {[%emt 0:02:38]} g6 {[%emt 0:00:55]} 7. Be3 {[%emt 0:01:15]} Bg7 {[%emt 0:00:08]} 8. h3 {[%emt 0:02:58]} O-O {[%emt 0:01:01]} 9. Qd2 {[%emt 0:00:59]} Bd7 {[%emt 0:06:33]} 10. f4 {[%emt 0:04:30]} Nxd4 {[%emt 0:07:37]} 11. Bxd4 {[%emt 0:00:26]} Bc6 {[%emt 0:00:12]} 12. Bf3 {[%emt 0:01:27]} e5 {[%emt 0:18:55]} 13. fxe5 {[%emt 0:01:28]} dxe5 {[%emt 0:02:45]} 14. Bc5 {[%emt 0:08:55]} Qxd2+ {[%emt 0:00:56]} 15. Kxd2 {[%emt 0:00:02]} Rfc8 {[%emt 0:00:39]} 16. Be3 {[%emt 0:01:31]} b5 {[%emt 0:02:02]} 17. a3 {[%emt 0:00:48]} a5 {[%emt 0:06:10]} 18. Bg5 {[%emt 0:09:54]} Ne8 {[%emt 0:19:46]} 19. Rad1 {[%emt 0:07:08]} f6 {[%emt 0:06:20]} 20. Be3 {[%emt 0:00:38]} b4 {[%emt 0:00:26]} 21. axb4 {[%emt 0:03:34]} axb4 {[%emt 0:00:09]} 22. Nd5 {[%emt 0:02:45]} Bxd5 {[%emt 0:01:04]} 23. exd5 {[%emt 0:00:03]} Nd6 {[%emt 0:00:12]} 24. Be2 {[%emt 0:06:03]} f5 {[%emt 0:01:41]} 25. Ra1 {[%emt 0:06:40]} Ne4+ {[%emt 0:12:01]} 26. Kd3 {[%emt 0:00:24]} Ng3 {[%emt 0:00:32]} 27. Rxa8 {[%emt 0:05:11]} Rxa8 {[%emt 0:02:23]} 28. Re1 {[%emt 0:02:40]} e4+ {[%emt 0:02:13]} 29. Kc4 {[%emt 0:01:34]} Rc8+ {[%emt 0:01:44]} 30. Kxb4 {[%emt 0:03:04]} Rxc2 {[%emt 0:00:21]} 31. Bc4 {[%emt 0:00:40]} Rxb2+ {[%emt 0:00:32]} 32. Kc5 {[%emt 0:00:35]} Be5 {[%emt 0:02:01]} 33. d6+ {[%emt 0:03:13]} Kf8 {[%emt 0:00:15]} 34. Rd1 {[%emt 0:04:40]} f4 {[%emt 0:03:38]} 35. d7 {[%emt 0:03:46]} Rb8 {[%emt 0:02:56]} 36. d8=Q+ {[%emt 0:01:17]} Rxd8 {[%emt 0:00:01]} 37. Rxd8+ {[%emt 0:00:08]} Ke7 {[%emt 0:00:05]} 38. Rd5 {[%emt 0:00:18]} Bb8 {[%emt 0:01:18]} 39. Bd4 {[%emt 0:01:54]} e3 {[%emt 0:00:18]} 40. Be5 {[%emt 0:00:00]} e2 {[%emt 0:00:00]} 41. Bxe2 {[%emt 0:01:44]} Ba7+ {[%emt 0:01:16]} 42. Kc6 {[%emt 0:00:24]} Nxe2 {[%emt 0:01:26]} 43. Rd7+ {[%emt 0:00:30]} Ke6 {[%emt 0:00:06]} 44. Rxa7 {[%emt 0:00:49]} Kxe5 {[%emt 0:02:01]} 45. Re7+ {[%emt 0:00:09]} Kd4 {[%emt 0:00:49]} 46. Rxe2 {[%emt 0:00:10]} g5 {[%emt 0:00:06]} 47. Re8 {[%emt 0:02:26]} h6 {[%emt 0:00:31]} 48. Re6 {[%emt 0:00:44] Kd5+ [%clk 00:27:17] [%emt 00:00:38]} 1-0

[Event "World Senior chT-50 2019"]
[Site "Rhodes"]
[Date "2019.04.21"]
[Round "6.25"]
[White "Lagerborg, Krister"]
[Black "Yrjola, Jouni"]
[Result "1/2-1/2"]
[ECO "A36"]
[WhiteElo "2102"]
[BlackElo "2327"]
[Annotator "NA"]
[PlyCount "52"]
[EventDate "2019.04.16"]
[EventType "team-tourn"]
[EventCountry "GRE"]
[SourceTitle "playchess.com"]
[Source "ChessBase"]
[SourceQuality "1"]
[WhiteTeam "Sweden"]
[BlackTeam "Finland"]
[WhiteTeamCountry "SWE"]
[BlackTeamCountry "FIN"]
[TimeControl "40/5400+30:1800+30"]

1. c4 {[%emt 0:00:23]} c5 {[%emt 0:00:00]} 2. g3 {[%emt 0:08:38]} g6 {[%emt 0:00:00]} 3. Bg2 {[%emt 0:00:16]} Bg7 {[%emt 0:00:01]} 4. Nc3 {[%emt 0:00:34]} Nc6 {[%emt 0:00:13]} 5. a3 {[%emt 0:01:35]} a5 {[%emt 0:00:23]} 6. e3 {[%emt 0:03:48]} d6 {[%emt 0:00:32]} 7. Nge2 {[%emt 0:01:13]} Nf6 {[%emt 0:10:25]} 8. O-O {[%emt 0:09:39]} O-O {[%emt 0:00:59]} 9. d4 {[%emt 0:05:40]} cxd4 {[%emt 0:01:11]} 10. exd4 {[%emt 0:00:09]} Bf5 {[%emt 0:01:40]} 11. h3 {[%emt 0:03:42]} h5 {[%emt 0:12:43]} 12. Bg5 {[%emt 0:16:43]} Rc8 {[%emt 0:04:41]} 13. b3 {[%emt 0:19:56]} Nb8 {[%emt 0:13:31]} 14. Nf4 {[%emt 0:00:00]} Nh7 {[%emt 0:08:21]} 15. Bh4 {[%emt 0:00:00]} g5 {[%emt 0:09:53]} 16. Nxh5 {[%emt 0:10:57]} gxh4 {[%emt 0:03:17]} 17. Nxg7 {[%emt 0:00:36]} Kxg7 {[%emt 0:00:23]} 18. g4 {[%emt 0:00:40]} Bg6 {[%emt 0:00:27]} 19. Bxb7 {[%emt 0:00:11]} Rc7 {[%emt 0:02:10]} 20. Bg2 {[%emt 0:00:20]} e6 {[%emt 0:08:48]} 21. Nb5 {[%emt 0:04:22]} Rd7 {[%emt 0:02:54]} 22. f4 {[%emt 0:06:52]} f5 {[%emt 0:01:43]} 23. Qe1 {[%emt 0:08:43]} Nf6 {[%emt 0:00:42]} 24. Qxh4 {[%emt 0:00:30]} Ne4 {[%emt 0:03:41]} 25. Qe1 {[%emt 0:00:00]} Qb6 {[%emt 0:03:21]} 26. a4 {[%emt 0:00:00]} Nc6 {[%emt 0:05:23]} 1/2-1/2